[Event "Early-Titled-Tuesday-Blitz-June-18-2024"]
[Site "Chess.com"]
[Date "2024.06.18"]
[Round "8"]
[White "Bob_2004"]
[Black "dropstoneDP"]
[Result "0-1"]
[WhiteElo "2768"]
[BlackElo "2978"]
[TimeControl "180+1"]
[EndTime "9:32:34 PDT"]
[Termination "dropstoneDP won by resignation"]

1. d4 {[%clk 0:03:00.9]} 1... d5 {[%clk 0:02:58.8]} 2. c4 {[%clk 0:03:01.3]}
2... dxc4 {[%clk 0:02:58.5]} 3. Nf3 {[%clk 0:03:00.6]} 3... Nf6 {[%clk
0:02:58.9]} 4. e3 {[%clk 0:03:01.1]} 4... e6 {[%clk 0:02:57.4]} 5. Bxc4 {[%clk
0:03:01.6]} 5... a6 {[%clk 0:02:56.7]} 6. O-O {[%clk 0:03:02]} 6... b5 {[%clk
0:02:56.2]} 7. Bd3 {[%clk 0:03:01.9]} 7... Bb7 {[%clk 0:02:55.5]} 8. a4 {[%clk
0:03:02]} 8... Nbd7 {[%clk 0:02:55.7]} 9. axb5 {[%clk 0:03:00.2]} 9... axb5
{[%clk 0:02:56.2]} 10. Rxa8 {[%clk 0:03:00.8]} 10... Qxa8 {[%clk 0:02:56.9]} 11.
Bxb5 {[%clk 0:03:00.7]} 11... Be7 {[%clk 0:02:56.6]} 12. Re1 {[%clk 0:02:54.3]}
12... O-O {[%clk 0:02:56.3]} 13. Bf1 {[%clk 0:02:54.5]} 13... c5 {[%clk
0:02:53.4]} 14. Nc3 {[%clk 0:02:53.2]} 14... Rd8 {[%clk 0:02:50.8]} 15. Qe2
{[%clk 0:02:36.5]} 15... Bxf3 {[%clk 0:02:47.5]} 16. Qxf3 {[%clk 0:02:36.9]}
16... Qxf3 {[%clk 0:02:48]} 17. gxf3 {[%clk 0:02:37.8]} 17... cxd4 {[%clk
0:02:48.4]} 18. exd4 {[%clk 0:02:38.7]} 18... Nb6 {[%clk 0:02:48]} 19. Be3
{[%clk 0:02:36.4]} 19... Nfd5 {[%clk 0:02:35.1]} 20. Ra1 {[%clk 0:02:31.5]}
20... Rc8 {[%clk 0:02:26.6]} 21. Ra7 {[%clk 0:02:20.7]} 21... Bf8 {[%clk
0:02:08.8]} 22. Ne4 {[%clk 0:02:19.7]} 22... Nc4 {[%clk 0:01:59.9]} 23. Bc1
{[%clk 0:02:01.6]} 23... h6 {[%clk 0:01:56.5]} 24. b3 {[%clk 0:01:51.6]} 24...
Nd6 {[%clk 0:01:56.1]} 25. Ba3 {[%clk 0:01:45.9]} 25... Nf5 {[%clk 0:01:55.8]}
26. Bc5 {[%clk 0:01:38.1]} 26... Bxc5 {[%clk 0:01:42.3]} 27. dxc5 {[%clk
0:01:38]} 27... Nd4 {[%clk 0:01:42.9]} 28. Bc4 {[%clk 0:01:30]} 28... Nf4 {[%clk
0:01:37.3]} 29. b4 {[%clk 0:01:18]} 29... Nxf3+ {[%clk 0:01:36.4]} 30. Kh1
{[%clk 0:01:18.5]} 30... Ne5 {[%clk 0:01:21.4]} 31. Ba6 {[%clk 0:01:16.3]} 31...
Rd8 {[%clk 0:01:13.9]} 32. Nd6 {[%clk 0:01:15.8]} 32... Nc6 {[%clk 0:01:13.6]}
33. Rb7 {[%clk 0:00:29.8]} 33... Ne5 {[%clk 0:00:41.5]} 34. h4 {[%clk
0:00:22.9]} 34... g5 {[%clk 0:00:36.2]} 35. hxg5 {[%clk 0:00:22.6]} 35... hxg5
{[%clk 0:00:37.1]} 36. Rc7 {[%clk 0:00:14.8]} 36... Kg7 {[%clk 0:00:35.6]} 37.
Rc8 {[%clk 0:00:15.3]} 37... Rd7 {[%clk 0:00:35.6]} 38. b5 {[%clk 0:00:12.2]}
38... Ned3 {[%clk 0:00:34.5]} 39. b6 {[%clk 0:00:10.4]} 39... Nxc5 {[%clk
0:00:33.3]} 40. Rxc5 {[%clk 0:00:11.3]} 40... Rxd6 {[%clk 0:00:33.5]} 41. b7
{[%clk 0:00:11.8]} 41... Rd8 {[%clk 0:00:18.6]} 42. Rc8 {[%clk 0:00:11.8]} 42...
Rd1+ {[%clk 0:00:19.2]} 43. Kh2 {[%clk 0:00:12.5]} 43... Rb1 {[%clk 0:00:19.9]}
44. b8=Q {[%clk 0:00:12.4]} 44... Rxb8 {[%clk 0:00:20.8]} 45. Rxb8 {[%clk
0:00:13.3]} 45... Kf6 {[%clk 0:00:21.7]} 46. Rb2 {[%clk 0:00:12.6]} 46... Nd5
{[%clk 0:00:21.7]} 47. Bc4 {[%clk 0:00:12.1]} 47... Nf4 {[%clk 0:00:21.9]} 48.
Ra2 {[%clk 0:00:11.8]} 48... Ng6 {[%clk 0:00:22.2]} 49. Kg3 {[%clk 0:00:11.9]}
49... Kg7 {[%clk 0:00:21.6]} 50. Be2 {[%clk 0:00:12.5]} 50... Kf6 {[%clk
0:00:21.7]} 51. Ra5 {[%clk 0:00:13.1]} 51... Nf4 {[%clk 0:00:21.2]} 52. Bd1
{[%clk 0:00:12.5]} 52... Ng6 {[%clk 0:00:20.7]} 53. Ra7 {[%clk 0:00:12]} 53...
Nf4 {[%clk 0:00:19.2]} 54. Bg4 {[%clk 0:00:11.9]} 54... Kg7 {[%clk 0:00:16.8]}
55. Kf3 {[%clk 0:00:10]} 55... Kg6 {[%clk 0:00:16]} 56. Rb7 {[%clk 0:00:08.8]}
56... f5 {[%clk 0:00:16.3]} 57. Rb6 {[%clk 0:00:06.1]} 57... Kf6 {[%clk
0:00:14.5]} 58. Bxf5 {[%clk 0:00:02.7]} 58... Kxf5 {[%clk 0:00:15.4]} 59. Ra6
{[%clk 0:00:02.9]} 59... e5 {[%clk 0:00:15.3]} 60. Ra5 {[%clk 0:00:03.8]} 60...
Ne6 {[%clk 0:00:14.4]} 61. Ke3 {[%clk 0:00:03.4]} 61... Nd4 {[%clk 0:00:14.1]}
62. Ra8 {[%clk 0:00:04]} 62... Nc2+ {[%clk 0:00:13.3]} 63. Kf3 {[%clk
0:00:03.9]} 63... Nd4+ {[%clk 0:00:13.5]} 64. Kg2 {[%clk 0:00:04.5]} 64... Ne6
{[%clk 0:00:12.7]} 65. Re8 {[%clk 0:00:04.8]} 65... Nf4+ {[%clk 0:00:10.8]} 66.
Kf3 {[%clk 0:00:05.4]} 66... Ng6 {[%clk 0:00:09.8]} 67. Rg8 {[%clk 0:00:04.8]}
67... Nh4+ {[%clk 0:00:09.1]} 68. Kg3 {[%clk 0:00:05.3]} 68... Ng6 {[%clk
0:00:10]} 69. Rg7 {[%clk 0:00:05.7]} 69... Kf6 {[%clk 0:00:10.3]} 70. Ra7 {[%clk
0:00:05.5]} 70... Kf5 {[%clk 0:00:10.1]} 71. Rf7+ {[%clk 0:00:05.7]} 71... Ke6
{[%clk 0:00:10.6]} 72. Rb7 {[%clk 0:00:06.1]} 72... Kf5 {[%clk 0:00:10.8]} 73.
Rb6 {[%clk 0:00:06.5]} 73... Nf4 {[%clk 0:00:10.8]} 74. Rb8 {[%clk 0:00:06.4]}
74... Ne2+ {[%clk 0:00:11]} 75. Kf3 {[%clk 0:00:06.3]} 75... Nd4+ {[%clk
0:00:11.6]} 76. Kg3 {[%clk 0:00:06.8]} 76... Ne6 {[%clk 0:00:11.3]} 77. Rb7
{[%clk 0:00:06.2]} 77... Nc5 {[%clk 0:00:11.3]} 78. Rf7+ {[%clk 0:00:05.8]}
78... Kg6 {[%clk 0:00:11.8]} 79. Rc7 {[%clk 0:00:05.9]} 79... Ne4+ {[%clk
0:00:12]} 80. Kf3 {[%clk 0:00:05.8]} 80... Nf6 {[%clk 0:00:12.9]} 81. Ke3 {[%clk
0:00:04.6]} 81... Nd5+ {[%clk 0:00:13]} 82. Ke4 {[%clk 0:00:05.2]} 82... Nxc7
{[%clk 0:00:13.9]} 83. Kxe5 {[%clk 0:00:06.1]} 83... Ne8 {[%clk 0:00:13.7]} 84.
f4 {[%clk 0:00:02.2]} 84... g4 {[%clk 0:00:14]} 85. f5+ {[%clk 0:00:02.8]} 85...
Kg5 {[%clk 0:00:14.9]} 86. f6 {[%clk 0:00:03.2]} 86... Nxf6 {[%clk 0:00:15.8]}
0-1

[Event "Early-Titled-Tuesday-Blitz-June-18-2024"]
[Site "Chess.com"]
[Date "2024.06.18"]
[Round "8"]
[White "kinga2008"]
[Black "Zampronha1971"]
[Result "1-0"]
[WhiteElo "2568"]
[BlackElo "2397"]
[TimeControl "180+1"]
[EndTime "9:32:47 PDT"]
[Termination "kinga2008 won by checkmate"]

1. e4 {[%clk 0:02:47.5]} 1... c5 {[%clk 0:02:59.9]} 2. Nf3 {[%clk 0:02:42.3]}
2... e6 {[%clk 0:03:00.5]} 3. c3 {[%clk 0:02:39.3]} 3... Nf6 {[%clk 0:02:58.9]}
4. e5 {[%clk 0:02:31.7]} 4... Nd5 {[%clk 0:02:59.3]} 5. d4 {[%clk 0:02:31.7]}
5... cxd4 {[%clk 0:03:00.2]} 6. cxd4 {[%clk 0:02:26.8]} 6... b6 {[%clk
0:03:00.2]} 7. Nc3 {[%clk 0:02:25.7]} 7... Nxc3 {[%clk 0:02:59.6]} 8. bxc3
{[%clk 0:02:23.1]} 8... Bb7 {[%clk 0:03:00.5]} 9. Bd3 {[%clk 0:02:13.6]} 9...
Qc7 {[%clk 0:03:00.9]} 10. Bd2 {[%clk 0:02:04.8]} 10... d6 {[%clk 0:03:01.2]}
11. O-O {[%clk 0:02:03.4]} 11... Nd7 {[%clk 0:03:01.5]} 12. Re1 {[%clk
0:01:57.8]} 12... Be7 {[%clk 0:02:54.6]} 13. exd6 {[%clk 0:01:37.4]} 13... Bxd6
{[%clk 0:02:53.4]} 14. h3 {[%clk 0:01:37.5]} 14... Nf6 {[%clk 0:02:51.8]} 15.
Ng5 {[%clk 0:01:37.2]} 15... h6 {[%clk 0:02:44.8]} 16. Bb5+ {[%clk 0:01:27.6]}
16... Bc6 {[%clk 0:02:37.2]} 17. Qa4 {[%clk 0:01:08.8]} 17... Bxb5 {[%clk
0:02:17.8]} 18. Qxb5+ {[%clk 0:01:06.2]} 18... Qd7 {[%clk 0:02:18.5]} 19. Qxd7+
{[%clk 0:00:52.5]} 19... Nxd7 {[%clk 0:02:17.8]} 20. Nxe6 {[%clk 0:00:50]} 20...
fxe6 {[%clk 0:02:16.1]} 21. Rxe6+ {[%clk 0:00:50.9]} 21... Be7 {[%clk
0:02:15.6]} 22. Rae1 {[%clk 0:00:50.8]} 22... Kf8 {[%clk 0:01:58.5]} 23. Rxe7
{[%clk 0:00:50]} 23... Nf6 {[%clk 0:01:57.9]} 24. c4 {[%clk 0:00:47.8]} 24...
Rc8 {[%clk 0:01:47.9]} 25. Bb4 {[%clk 0:00:35.9]} 25... Kg8 {[%clk 0:01:46.8]}
26. c5 {[%clk 0:00:29.8]} 26... Nd5 {[%clk 0:01:43.4]} 27. Re8+ {[%clk
0:00:20.4]} 27... Kf7 {[%clk 0:01:43.4]} 28. Rxh8 {[%clk 0:00:19.1]} 28... Rxh8
{[%clk 0:01:44.3]} 29. Ba3 {[%clk 0:00:19.3]} 29... Rd8 {[%clk 0:01:41.9]} 30.
Rd1 {[%clk 0:00:02.5]} 30... Nc3 {[%clk 0:01:41.5]} 31. Rd2 {[%clk 0:00:03]}
31... Nb5 {[%clk 0:01:35.7]} 32. Bb4 {[%clk 0:00:02.3]} 32... Nxd4 {[%clk
0:01:33.9]} 33. Kf1 {[%clk 0:00:02.9]} 33... a5 {[%clk 0:01:11.3]} 34. cxb6
{[%clk 0:00:03.8]} 34... axb4 {[%clk 0:01:09.3]} 35. b7 {[%clk 0:00:04.2]} 35...
Rb8 {[%clk 0:01:04.3]} 36. Rxd4 {[%clk 0:00:04.5]} 36... Rxb7 {[%clk 0:01:05.2]}
37. Ke2 {[%clk 0:00:05.2]} 37... b3 {[%clk 0:01:02.2]} 38. axb3 {[%clk
0:00:05.3]} 38... Rxb3 {[%clk 0:01:03.1]} 39. Rd3 {[%clk 0:00:04.9]} 39... Rb2+
{[%clk 0:01:02.8]} 40. Kf3 {[%clk 0:00:04.9]} 40... Kf6 {[%clk 0:01:01]} 41. Ra3
{[%clk 0:00:05.5]} 41... Kg6 {[%clk 0:00:58.1]} 42. Ra6+ {[%clk 0:00:05.8]}
42... Kh7 {[%clk 0:00:58.8]} 43. Ra5 {[%clk 0:00:06.7]} 43... Rb3+ {[%clk
0:00:58.1]} 44. Kg4 {[%clk 0:00:07.2]} 44... Rb2 {[%clk 0:00:59]} 45. Kg3 {[%clk
0:00:07.5]} 45... Rb3+ {[%clk 0:00:59.3]} 46. f3 {[%clk 0:00:08.2]} 46... Rb2
{[%clk 0:01:00.2]} 47. Ra4 {[%clk 0:00:08.9]} 47... Rc2 {[%clk 0:00:59.1]} 48.
h4 {[%clk 0:00:09.3]} 48... Rb2 {[%clk 0:00:58.4]} 49. Rg4 {[%clk 0:00:09.8]}
49... Ra2 {[%clk 0:00:57.8]} 50. h5 {[%clk 0:00:10.4]} 50... Ra5 {[%clk
0:00:55.8]} 51. Kh4 {[%clk 0:00:10.9]} 51... Ra3 {[%clk 0:00:53.4]} 52. Re4
{[%clk 0:00:10.7]} 52... Rb3 {[%clk 0:00:52.5]} 53. f4 {[%clk 0:00:09.1]} 53...
Rb1 {[%clk 0:00:49.1]} 54. Re7 {[%clk 0:00:04]} 54... Rb2 {[%clk 0:00:47.2]} 55.
g4 {[%clk 0:00:03.8]} 55... Rb1 {[%clk 0:00:42.2]} 56. Re3 {[%clk 0:00:03.9]}
56... Rh1+ {[%clk 0:00:38.2]} 57. Rh3 {[%clk 0:00:03.8]} 57... Rf1 {[%clk
0:00:38.5]} 58. Kg3 {[%clk 0:00:03.3]} 58... Kg8 {[%clk 0:00:35.7]} 59. Rh2
{[%clk 0:00:02.8]} 59... Rb1 {[%clk 0:00:32.9]} 60. Rd2 {[%clk 0:00:02.8]} 60...
Rb4 {[%clk 0:00:30.9]} 61. g5 {[%clk 0:00:02.6]} 61... hxg5 {[%clk 0:00:27.7]}
62. fxg5 {[%clk 0:00:03.5]} 62... Kh7 {[%clk 0:00:28.2]} 63. Rd5 {[%clk
0:00:02.7]} 63... Ra4 {[%clk 0:00:26.9]} 64. Kh3 {[%clk 0:00:03]} 64... Rb4
{[%clk 0:00:26.8]} 65. Rd8 {[%clk 0:00:03.2]} 65... Ra4 {[%clk 0:00:18.4]} 66.
Rd7 {[%clk 0:00:03.3]} 66... Ra5 {[%clk 0:00:08]} 67. Kg4 {[%clk 0:00:02.8]}
67... Ra4+ {[%clk 0:00:08.6]} 68. Kf5 {[%clk 0:00:03.5]} 68... Ra5+ {[%clk
0:00:08.6]} 69. Kf4 {[%clk 0:00:04.2]} 69... Ra4+ {[%clk 0:00:08.8]} 70. Ke5
{[%clk 0:00:04.9]} 70... Ra5+ {[%clk 0:00:09]} 71. Rd5 {[%clk 0:00:05.5]} 71...
Ra1 {[%clk 0:00:07.5]} 72. Rd4 {[%clk 0:00:05.6]} 72... Ra5+ {[%clk 0:00:07]}
73. Kf4 {[%clk 0:00:05.5]} 73... Ra1 {[%clk 0:00:07.5]} 74. Kf5 {[%clk
0:00:05.3]} 74... Ra5+ {[%clk 0:00:06.8]} 75. Kg4 {[%clk 0:00:06]} 75... Ra1
{[%clk 0:00:07.6]} 76. Rd7 {[%clk 0:00:04.7]} 76... Ra4+ {[%clk 0:00:06.7]} 77.
Kf5 {[%clk 0:00:05]} 77... Ra5+ {[%clk 0:00:07]} 78. Kf4 {[%clk 0:00:05.7]}
78... Ra4+ {[%clk 0:00:07.3]} 79. Kg3 {[%clk 0:00:05.2]} 79... Ra3+ {[%clk
0:00:07.4]} 80. Kf2 {[%clk 0:00:05.9]} 80... Ra2+ {[%clk 0:00:07]} 81. Kf3
{[%clk 0:00:06.3]} 81... Ra3+ {[%clk 0:00:07.2]} 82. Ke4 {[%clk 0:00:07]} 82...
Ra4+ {[%clk 0:00:07.2]} 83. Rd4 {[%clk 0:00:07.7]} 83... Ra5 {[%clk 0:00:06.9]}
84. Rd5 {[%clk 0:00:08.4]} 84... Ra4+ {[%clk 0:00:07.1]} 85. Kf5 {[%clk
0:00:08.9]} 85... Ra1 {[%clk 0:00:05.9]} 86. h6 {[%clk 0:00:09.4]} 86... Rf1+
{[%clk 0:00:03.4]} 87. Kg4 {[%clk 0:00:10]} 87... Rg1+ {[%clk 0:00:03.8]} 88.
Kh5 {[%clk 0:00:08.8]} 88... gxh6 {[%clk 0:00:04.6]} 89. Rd7+ {[%clk 0:00:08.7]}
89... Kh8 {[%clk 0:00:04.2]} 90. Kxh6 {[%clk 0:00:08.5]} 90... Rh1+ {[%clk
0:00:04.8]} 91. Kg6 {[%clk 0:00:09]} 91... Rd1 {[%clk 0:00:03]} 92. Rxd1 {[%clk
0:00:08.9]} 92... Kg8 {[%clk 0:00:01.8]} 93. Rd8# {[%clk 0:00:09.8]} 1-0

[Event "Early-Titled-Tuesday-Blitz-June-18-2024"]
[Site "Chess.com"]
[Date "2024.06.18"]
[Round "9"]
[White "Ati1517"]
[Black "N_Mullodzhanov"]
[Result "0-1"]
[WhiteElo "2041"]
[BlackElo "2536"]
[TimeControl "180+1"]
[EndTime "9:41:38 PDT"]
[Termination "N_Mullodzhanov won by resignation"]

1. e4 {[%clk 0:02:51]} 1... c6 {[%clk 0:02:59]} 2. Nf3 {[%clk 0:02:51.9]} 2...
d5 {[%clk 0:02:58.2]} 3. exd5 {[%clk 0:02:52.8]} 3... cxd5 {[%clk 0:02:58.2]} 4.
d4 {[%clk 0:02:53.4]} 4... Nf6 {[%clk 0:02:58]} 5. Bd3 {[%clk 0:02:53.7]} 5...
Nc6 {[%clk 0:02:58.3]} 6. O-O {[%clk 0:02:54]} 6... Nb4 {[%clk 0:02:58.7]} 7.
Be2 {[%clk 0:02:53.4]} 7... Bf5 {[%clk 0:02:58.8]} 8. Na3 {[%clk 0:02:52.4]}
8... e6 {[%clk 0:02:58.2]} 9. c3 {[%clk 0:02:52.6]} 9... Nc6 {[%clk 0:02:58.2]}
10. Nc2 {[%clk 0:02:53.1]} 10... Bd6 {[%clk 0:02:58.3]} 11. Ne3 {[%clk
0:02:52.9]} 11... Bg6 {[%clk 0:02:56.7]} 12. Bd2 {[%clk 0:02:53.4]} 12... O-O
{[%clk 0:02:56.3]} 13. b4 {[%clk 0:02:52.3]} 13... Ne4 {[%clk 0:02:55.7]} 14.
Bd3 {[%clk 0:02:48.6]} 14... Nxf2 {[%clk 0:02:52.5]} 15. Rxf2 {[%clk 0:02:48.3]}
15... Bxd3 {[%clk 0:02:52.4]} 16. Ng4 {[%clk 0:02:48.1]} 16... Bf5 {[%clk
0:02:37.9]} 17. Bg5 {[%clk 0:02:44]} 17... f6 {[%clk 0:02:35.7]} 18. Bxf6 {[%clk
0:02:43.4]} 18... gxf6 {[%clk 0:02:24.1]} 19. Nh6+ {[%clk 0:02:44.3]} 19... Kh8
{[%clk 0:02:21.5]} 20. Nxf5 {[%clk 0:02:45.2]} 20... exf5 {[%clk 0:02:22.1]} 21.
Nh4 {[%clk 0:02:45.5]} 21... f4 {[%clk 0:02:17]} 22. Qh5 {[%clk 0:02:42.8]}
22... Rg8 {[%clk 0:02:11.8]} 23. Nf5 {[%clk 0:02:42.1]} 0-1

[Event "Early-Titled-Tuesday-Blitz-June-18-2024"]
[Site "Chess.com"]
[Date "2024.06.18"]
[Round "9"]
[White "Niteshch"]
[Black "Alexchess1984"]
[Result "0-1"]
[WhiteElo "2360"]
[BlackElo "2559"]
[TimeControl "180+1"]
[EndTime "9:41:52 PDT"]
[Termination "Alexchess1984 won by resignation"]

1. e4 {[%clk 0:03:00.9]} 1... e6 {[%clk 0:03:00.9]} 2. d4 {[%clk 0:02:59.4]}
2... d5 {[%clk 0:03:01.2]} 3. Nd2 {[%clk 0:02:57.8]} 3... a6 {[%clk 0:03:00.2]}
4. Ngf3 {[%clk 0:02:54.5]} 4... c5 {[%clk 0:02:59.8]} 5. exd5 {[%clk 0:02:51.1]}
5... exd5 {[%clk 0:02:59.2]} 6. dxc5 {[%clk 0:02:47.3]} 6... Bxc5 {[%clk
0:02:58.2]} 7. Nb3 {[%clk 0:02:46.7]} 7... Ba7 {[%clk 0:02:48.1]} 8. Bd3 {[%clk
0:02:46.1]} 8... Nf6 {[%clk 0:02:47.5]} 9. O-O {[%clk 0:02:45.8]} 9... O-O
{[%clk 0:02:47.1]} 10. Bg5 {[%clk 0:02:45.6]} 10... Nc6 {[%clk 0:02:45]} 11. c3
{[%clk 0:02:42.4]} 11... Bg4 {[%clk 0:02:44.1]} 12. h3 {[%clk 0:02:41.2]} 12...
Bh5 {[%clk 0:02:43.3]} 13. Bc2 {[%clk 0:02:39]} 13... Qd6 {[%clk 0:02:40]} 14.
Qd2 {[%clk 0:02:24]} 14... Bxf3 {[%clk 0:02:35]} 15. gxf3 {[%clk 0:02:19.3]}
15... Qg3+ {[%clk 0:02:34.6]} 16. Kh1 {[%clk 0:02:19.4]} 16... Qxh3+ {[%clk
0:02:34.3]} 17. Kg1 {[%clk 0:02:19.7]} 17... Qg3+ {[%clk 0:02:34.3]} 18. Kh1
{[%clk 0:02:19.7]} 18... Qxf3+ {[%clk 0:02:34.6]} 19. Kg1 {[%clk 0:02:17.6]}
19... Qg3+ {[%clk 0:02:23.7]} 20. Kh1 {[%clk 0:02:16.9]} 20... Qh3+ {[%clk
0:02:23.8]} 21. Kg1 {[%clk 0:02:16.7]} 21... Ng4 {[%clk 0:02:23.8]} 22. Qf4
{[%clk 0:02:12.9]} 22... Bb8 {[%clk 0:02:21.3]} 0-1

[Event "Early-Titled-Tuesday-Blitz-June-18-2024"]
[Site "Chess.com"]
[Date "2024.06.18"]
[Round "9"]
[White "rionelG"]
[Black "Kostukov_Alex"]
[Result "1-0"]
[WhiteElo "2358"]
[BlackElo "2304"]
[TimeControl "180+1"]
[EndTime "9:43:12 PDT"]
[Termination "rionelG won by resignation"]

1. e4 {[%clk 0:02:57.5]} 1... c5 {[%clk 0:02:40.3]} 2. g3 {[%clk 0:02:57.1]}
2... g6 {[%clk 0:02:39.7]} 3. Bg2 {[%clk 0:02:55.6]} 3... Bg7 {[%clk 0:02:40.1]}
4. Ne2 {[%clk 0:02:56.2]} 4... Nc6 {[%clk 0:02:40.1]} 5. c3 {[%clk 0:02:56.6]}
5... e5 {[%clk 0:02:39.6]} 6. d3 {[%clk 0:02:56.5]} 6... Nge7 {[%clk 0:02:39.7]}
7. Be3 {[%clk 0:02:57]} 7... d6 {[%clk 0:02:40]} 8. O-O {[%clk 0:02:56.3]} 8...
O-O {[%clk 0:02:39.2]} 9. f4 {[%clk 0:02:56.8]} 9... Be6 {[%clk 0:02:32.9]} 10.
Nd2 {[%clk 0:02:54.4]} 10... Qd7 {[%clk 0:02:27]} 11. Nf3 {[%clk 0:02:53.9]}
11... b6 {[%clk 0:02:20.2]} 12. d4 {[%clk 0:02:53.1]} 12... exd4 {[%clk
0:01:59.6]} 13. cxd4 {[%clk 0:02:52.6]} 13... cxd4 {[%clk 0:01:41.6]} 14. Nexd4
{[%clk 0:02:50.6]} 14... Nxd4 {[%clk 0:01:36.5]} 15. Nxd4 {[%clk 0:02:50.2]}
15... Bh3 {[%clk 0:01:32]} 16. Rc1 {[%clk 0:02:35.2]} 16... Bxg2 {[%clk
0:01:31]} 17. Kxg2 {[%clk 0:02:34.1]} 17... Rac8 {[%clk 0:01:19.6]} 18. Qd2
{[%clk 0:02:14.9]} 18... f5 {[%clk 0:01:10.6]} 19. exf5 {[%clk 0:02:10.7]} 19...
Nxf5 {[%clk 0:01:08.3]} 20. Nxf5 {[%clk 0:02:09.8]} 20... Qe6 {[%clk 0:01:06.7]}
1-0

[Event "Early-Titled-Tuesday-Blitz-June-18-2024"]
[Site "Chess.com"]
[Date "2024.06.18"]
[Round "9"]
[White "Milop27"]
[Black "Forge13"]
[Result "0-1"]
[WhiteElo "2440"]
[BlackElo "2668"]
[TimeControl "180+1"]
[EndTime "9:43:20 PDT"]
[Termination "Forge13 won by resignation"]

1. e4 {[%clk 0:03:00.9]} 1... e6 {[%clk 0:02:50]} 2. d4 {[%clk 0:03:00.1]} 2...
d5 {[%clk 0:02:37.3]} 3. e5 {[%clk 0:02:59.7]} 3... c5 {[%clk 0:02:36.5]} 4. c3
{[%clk 0:03:00.1]} 4... Qb6 {[%clk 0:02:37.1]} 5. Nf3 {[%clk 0:03:00]} 5... Nc6
{[%clk 0:02:37.8]} 6. a3 {[%clk 0:02:59.6]} 6... Bd7 {[%clk 0:02:37.3]} 7. b4
{[%clk 0:02:59]} 7... cxd4 {[%clk 0:02:38]} 8. cxd4 {[%clk 0:02:58.8]} 8... Rc8
{[%clk 0:02:38.7]} 9. Bd3 {[%clk 0:02:56]} 9... Nxd4 {[%clk 0:02:36.1]} 10. O-O
{[%clk 0:02:53]} 10... Rxc1 {[%clk 0:02:26.9]} 11. Qxc1 {[%clk 0:02:51.9]} 11...
Nb3 {[%clk 0:02:27.3]} 12. Qb2 {[%clk 0:02:49.2]} 12... Nxa1 {[%clk 0:02:27.6]}
13. Qxa1 {[%clk 0:02:49.1]} 13... Ne7 {[%clk 0:02:27.1]} 14. Nbd2 {[%clk
0:02:47]} 14... Ng6 {[%clk 0:02:27]} 15. Nb3 {[%clk 0:02:44.5]} 15... Be7 {[%clk
0:02:16.4]} 16. g3 {[%clk 0:02:43.5]} 16... O-O {[%clk 0:02:15.4]} 17. Rc1
{[%clk 0:02:43.3]} 17... f6 {[%clk 0:02:13]} 18. Nc5 {[%clk 0:02:36]} 18... Bc8
{[%clk 0:02:08.4]} 19. Bxg6 {[%clk 0:02:28.8]} 19... hxg6 {[%clk 0:02:09.3]} 20.
Qb1 {[%clk 0:02:25.8]} 20... f5 {[%clk 0:02:01.5]} 21. Nd4 {[%clk 0:02:21.2]}
21... g5 {[%clk 0:01:56.4]} 22. f4 {[%clk 0:02:14.4]} 22... gxf4 {[%clk
0:01:55.6]} 23. gxf4 {[%clk 0:02:14.2]} 23... Kf7 {[%clk 0:01:55.2]} 24. Rc3
{[%clk 0:02:07.4]} 24... Rh8 {[%clk 0:01:54.9]} 25. Rg3 {[%clk 0:02:06.9]} 25...
Rh6 {[%clk 0:01:54.4]} 26. Kg2 {[%clk 0:02:03.8]} 26... Bxc5 {[%clk 0:01:53.8]}
27. Qc2 {[%clk 0:01:56]} 27... Bxd4 {[%clk 0:01:46.1]} 28. Qxc8 {[%clk
0:01:55.7]} 28... Qc6 {[%clk 0:01:43.7]} 29. Qxc6 {[%clk 0:01:36.3]} 29... bxc6
{[%clk 0:01:44.6]} 0-1

[Event "Early-Titled-Tuesday-Blitz-June-18-2024"]
[Site "Chess.com"]
[Date "2024.06.18"]
[Round "9"]
[White "Casper"]
[Black "edgarhay012"]
[Result "0-1"]
[WhiteElo "2491"]
[BlackElo "2695"]
[TimeControl "180+1"]
[EndTime "9:43:25 PDT"]
[Termination "edgarhay012 won by resignation"]

1. e4 {[%clk 0:02:54.6]} 1... c5 {[%clk 0:02:59.7]} 2. Nf3 {[%clk 0:02:54.4]}
2... e6 {[%clk 0:03:00.3]} 3. d3 {[%clk 0:02:54.8]} 3... d5 {[%clk 0:03:00]} 4.
exd5 {[%clk 0:02:55.7]} 4... exd5 {[%clk 0:03:00.9]} 5. g3 {[%clk 0:02:56.1]}
5... Nf6 {[%clk 0:03:01.3]} 6. Bg2 {[%clk 0:02:57]} 6... Be7 {[%clk 0:03:01.9]}
7. O-O {[%clk 0:02:57.6]} 7... O-O {[%clk 0:03:02.4]} 8. Re1 {[%clk 0:02:58]}
8... Nc6 {[%clk 0:03:02.8]} 9. Nc3 {[%clk 0:02:54.2]} 9... h6 {[%clk 0:03:02.7]}
10. Ne5 {[%clk 0:02:51.6]} 10... Nxe5 {[%clk 0:03:00.8]} 11. Rxe5 {[%clk
0:02:52.5]} 11... Bd6 {[%clk 0:03:01.4]} 12. Re1 {[%clk 0:02:45.3]} 12... Bg4
{[%clk 0:02:59]} 13. Qd2 {[%clk 0:02:43.6]} 13... Bc7 {[%clk 0:02:51.8]} 14. h3
{[%clk 0:02:37.8]} 14... Be6 {[%clk 0:02:46.7]} 15. Ne2 {[%clk 0:02:36.9]} 15...
Qd7 {[%clk 0:02:42]} 16. Kh2 {[%clk 0:02:36.6]} 16... Rae8 {[%clk 0:02:40.2]}
17. Nf4 {[%clk 0:02:33.2]} 17... Bf5 {[%clk 0:02:39.5]} 18. Rxe8 {[%clk
0:02:04.6]} 18... Rxe8 {[%clk 0:02:40.4]} 19. d4 {[%clk 0:02:02.3]} 19... c4
{[%clk 0:02:38.3]} 20. c3 {[%clk 0:01:52.3]} 20... Be4 {[%clk 0:02:32]} 21. Qd1
{[%clk 0:01:46.7]} 21... Qf5 {[%clk 0:02:26.7]} 22. Be3 {[%clk 0:01:40.6]} 22...
h5 {[%clk 0:02:07.3]} 23. Bxe4 {[%clk 0:01:00.7]} 23... Rxe4 {[%clk 0:02:08.2]}
24. Qf3 {[%clk 0:01:00.8]} 24... g5 {[%clk 0:02:05.9]} 0-1